bitfinex/quotes_BTCUSD_20250529
["timestamp","ask_amount","ask_price","bid_price","bid_amount"]
[1748498228007,0.72951966,107640.0,107630.0,0.03474924]
[1748498228237,0.70946669,107640.0,107630.0,0.03474924]
[1748498228470,0.72951898,107640.0,107630.0,0.03474924]
[1748498229164,0.72299181,107640.0,107630.0,0.03474924]
[1748498229439,0.05460079,107640.0,107630.0,0.59022101]
[1748498229676,0.03916022,107640.0,107630.0,0.75567626]
[1748498230368,0.04568876,107640.0,107630.0,0.75567626]
[1748498230839,0.02611161,107650.0,107640.0,0.60001502]
[1748498231133,0.02611161,107650.0,107640.0,1.47434449]
[1748498231349,0.02611161,107650.0,107640.0,1.48086761]
[1748498231579,0.02611161,107650.0,107640.0,1.48086759]
[1748498231797,0.02611161,107650.0,107640.0,0.79078897]
[1748498232010,0.02611161,107650.0,107640.0,1.09431244]
[1748498232441,0.00611161,107650.0,107640.0,1.09431244]
[1748498232659,0.00611161,107650.0,107640.0,0.79731213]
[1748498232899,0.00611161,107650.0,107640.0,1.09431244]
[1748498233321,0.00611161,107650.0,107640.0,1.50483568]
[1748498233754,0.00611161,107650.0,107640.0,1.50880074]
[1748498233974,0.00611161,107650.0,107640.0,1.50880072]
[1748498234210,0.00611161,107650.0,107640.0,1.50231244]
[1748498234876,0.00611161,107650.0,107640.0,1.5088006]
[1748498235099,0.00611161,107650.0,107640.0,1.50231244]
[1748498235536,0.00611161,107650.0,107640.0,1.50880061]
[1748498235757,0.00611161,107650.0,107640.0,1.50231244]
[1748498237332,0.00611161,107650.0,107640.0,1.5088006]
[1748498238029,0.00611161,107650.0,107640.0,1.50879341]
[1748498238255,0.00611161,107650.0,107640.0,1.50231244]
[1748498238494,0.00611161,107650.0,107640.0,1.5087934]
[1748498238779,0.00611161,107650.0,107640.0,1.19878897]
[1748498239011,0.00611161,107650.0,107640.0,1.5087934]
[1748498239736,0.01870021,107660.0,107650.0,0.56191862]
[1748498239941,0.01870021,107660.0,107650.0,0.65297257]
[1748498240155,0.01870021,107660.0,107650.0,0.65945352]
[1748498240588,0.01870021,107660.0,107650.0,0.6594535]
[1748498240797,0.01870021,107660.0,107650.0,0.65297257]
[1748498241001,0.01870021,107660.0,107650.0,0.65597257]
[1748498241227,0.01870021,107660.0,107650.0,0.6624535]
[1748498241847,0.01870021,107660.0,107650.0,0.66245082]
[1748498242494,0.01870021,107660.0,107650.0,0.66445082]
[1748498243552,0.01870021,107660.0,107650.0,0.65797257]
[1748498243765,0.01870021,107660.0,107650.0,0.66444959]
[1748498244187,0.01870021,107660.0,107650.0,0.66445026]
[1748498244620,0.01870021,107660.0,107650.0,0.65797257]
[1748498245780,0.01599256,107660.0,107650.0,0.65797257]
[1748498246231,0.01599256,107660.0,107650.0,0.66445028]
[1748498246451,0.01599256,107660.0,107650.0,0.65797257]
[1748498246676,0.29831256,107680.0,107660.0,0.24622465]
[1748498246906,0.29831256,107680.0,107660.0,0.3437563]
[1748498247136,0.29831256,107680.0,107660.0,0.32799079]
[1748498247353,0.29831256,107680.0,107660.0,0.33727877]
[1748498247617,0.30759864,107680.0,107660.0,0.23693702]
[1748498247859,0.33051256,107680.0,107660.0,0.26199186]
[1748498248074,0.33051256,107680.0,107660.0,0.2537038]
[1748498248357,0.33051256,107680.0,107660.0,0.26299186]
[1748498248576,0.29831256,107680.0,107660.0,0.30787117]
[1748498248799,0.29831256,107680.0,107660.0,0.31915902]
[1748498249018,0.29831256,107680.0,107660.0,0.31267909]
[1748498249233,0.29831256,107680.0,107660.0,0.31267918]
[1748498249911,0.29831256,107680.0,107660.0,0.31635072]
[1748498250158,0.29831256,107680.0,107660.0,0.26040282]
[1748498250383,0.29831256,107680.0,107660.0,0.26688249]
[1748498250838,0.29831256,107680.0,107660.0,0.2733622]
[1748498251051,0.29831256,107680.0,107660.0,0.28265018]
[1748498251279,0.29831256,107680.0,107660.0,0.29194137]
[1748498251514,0.29831256,107680.0,107660.0,0.29194132]
[1748498251745,0.29831256,107680.0,107660.0,0.29194131]
[1748498251978,0.29831256,107680.0,107660.0,0.3346281]
[1748498252425,0.29831256,107680.0,107660.0,0.2668824]
[1748498252661,0.29831256,107680.0,107660.0,0.27617056]
[1748498252886,0.29831256,107680.0,107660.0,0.28265364]
[1748498253341,0.29831256,107680.0,107660.0,0.28913673]
[1748498253560,0.29831256,107680.0,107660.0,0.28913672]
[1748498254057,0.29831256,107680.0,107660.0,0.29561977]
[1748498254309,0.29831256,107680.0,107660.0,0.29842461]
[1748498255418,0.38987121,107690.0,107660.0,0.30490766]
[1748498255636,0.30032,107680.0,107660.0,0.29842461]
[1748498256305,0.30032,107680.0,107660.0,0.29642461]
[1748498256554,0.30032,107680.0,107660.0,0.30291515]
[1748498256798,0.30032,107680.0,107660.0,0.30771242]
[1748498257029,0.30032,107680.0,107660.0,0.29842461]
[1748498257244,0.30032,107680.0,107660.0,0.29742461]
[1748498257932,0.30032,107680.0,107660.0,0.30391513]
[1748498258163,0.30032,107680.0,107660.0,0.3049482]
[1748498258407,0.30032,107680.0,107660.0,0.29742461]
[1748498258898,0.30032,107680.0,107660.0,0.29842461]
[1748498259114,0.30902378,107680.0,107660.0,0.28913672]
[1748498259331,0.30921471,107680.0,107660.0,0.29566031]
[1748498259556,0.31791849,107680.0,107660.0,0.28913672]
[1748498259768,0.32662227,107680.0,107660.0,0.3049482]
[1748498259982,0.32662227,107680.0,107660.0,0.29842461]
[1748498260196,0.32662227,107680.0,107660.0,0.3049482]
[1748498260430,0.02630227,107680.0,107660.0,0.30494769]
[1748498260658,0.32582227,107680.0,107670.0,0.00928763]
[1748498260874,0.31699849,107680.0,107670.0,0.0166]
[1748498261091,0.32570206,107680.0,107670.0,0.02312337]
[1748498261304,0.32570207,107680.0,107670.0,0.02312338]
[1748498262005,0.32579346,107680.0,107670.0,0.02312338]
[1748498262227,0.32579347,107680.0,107670.0,0.02312338]
[1748498262421,0.32579347,107680.0,107670.0,0.02312203]
[1748498262588,0.32579347,107680.0,107670.0,0.02312159]
[1748498262794,0.32579347,107680.0,107670.0,0.02312051]
[1748498262997,0.32579347,107680.0,107670.0,0.02312046]
[1748498263212,0.32579348,107680.0,107670.0,0.02312047]
[1748498263410,0.32579344,107680.0,107670.0,0.02312044]
[1748498264021,0.32579344,107680.0,107670.0,0.00652044]
[1748498264280,0.32579344,107680.0,107670.0,0.00652036]
[1748498265205,0.32579348,107680.0,107670.0,0.01580801]
[1748498265431,0.31708988,107680.0,107670.0,0.00928763]
[1748498265901,0.31708988,107680.0,107670.0,0.00652038]
[1748498266030,0.31708988,107680.0,107660.0,0.2854362]
[1748498266229,0.31708988,107680.0,107660.0,0.29472392]
[1748498266666,0.31708988,107680.0,107670.0,0.00928763]
[1748498266873,0.31708988,107680.0,107660.0,0.29472392]
[1748498267082,0.32579348,107680.0,107660.0,0.29472392]
[1748498267298,0.31708988,107680.0,107660.0,0.29472392]
[1748498267512,0.33610064,107680.0,107660.0,0.3022444]
[1748498267726,0.33610064,107680.0,107660.0,0.30501173]
[1748498267946,0.34480423,107680.0,107660.0,0.30501173]
[1748498268147,0.33610064,107680.0,107660.0,0.30501173]
[1748498268352,0.33610064,107680.0,107660.0,0.3115328]
[1748498268575,0.33610064,107680.0,107660.0,0.30501173]
[1748498268987,0.33610064,107680.0,107670.0,0.00928763]
[1748498269404,0.33610064,107680.0,107670.0,0.01580874]
[1748498269615,0.33610064,107680.0,107670.0,0.00928763]
[1748498270018,0.34480426,107680.0,107670.0,0.00928763]
[1748498270232,0.33610064,107680.0,107670.0,0.00928763]
[1748498270427,0.34480426,107680.0,107670.0,0.00928763]
[1748498270667,0.33610064,107680.0,107670.0,0.00928763]
[1748498271319,0.34480426,107680.0,107670.0,0.02509627]
[1748498271701,0.34360432,107680.0,107670.0,0.02509627]
[1748498272134,0.32459348,107680.0,107670.0,0.25118966]
[1748498272352,0.32459345,107680.0,107670.0,0.26698958]
[1748498272557,0.31588988,107680.0,107670.0,0.25770212]
[1748498272708,0.32459345,107680.0,107670.0,0.22664893]
[1748498273109,0.31588988,107680.0,107670.0,0.22664893]
[1748498273329,0.32459356,107680.0,107670.0,0.22664902]
[1748498273714,0.32461144,107680.0,107670.0,0.22012794]
[1748498274019,0.32461155,107680.0,107670.0,0.22664913]
[1748498274672,0.32461155,107680.0,107670.0,0.2359365]
[1748498275108,0.32461155,107680.0,107670.0,0.22664913]
[1748498275329,0.32461155,107680.0,107670.0,0.01580882]
[1748498275565,0.31590774,107680.0,107670.0,0.03438383]
[1748498275782,0.32461154,107680.0,107670.0,0.02786264]
[1748498276003,0.31590774,107680.0,107670.0,0.02786264]
[1748498276237,0.32461154,107680.0,107670.0,0.02786264]
[1748498276427,0.31590774,107680.0,107670.0,0.02786264]
[1748498276782,0.31590774,107680.0,107670.0,0.25520277]
[1748498276783,0.01770774,107680.0,107670.0,0.25520277]
[1748498276961,0.31518774,107680.0,107670.0,0.29494049]
[1748498277216,0.01770774,107680.0,107670.0,0.29494049]
[1748498277430,0.01749848,107680.0,107670.0,0.29494049]
[1748498277650,0.30619517,107680.0,107670.0,0.30146037]
[1748498277864,0.30619517,107680.0,107670.0,0.29494049]
[1748498278056,0.31489844,107680.0,107670.0,0.30146036]
[1748498278276,0.01749842,107680.0,107670.0,0.29494049]
[1748498278484,0.30607517,107680.0,107670.0,0.30146034]
[1748498278633,0.31477842,107680.0,107670.0,0.30145615]
[1748498278853,0.31477283,107680.0,107670.0,0.30145607]
[1748498279051,0.30607517,107680.0,107670.0,0.29494049]
[1748498279465,0.01749283,107680.0,107670.0,0.30145608]
[1748498279673,0.31457283,107680.0,107670.0,0.30145608]
[1748498279884,0.31457284,107680.0,107670.0,0.30145608]
[1748498280299,0.01749284,107680.0,107670.0,0.64292629]
[1748498280515,0.00879517,107680.0,107670.0,0.64292629]
[1748498280718,0.00879517,107680.0,107670.0,0.63641188]
[1748498280924,0.00879517,107680.0,107670.0,0.64292438]
[1748498281337,0.00879517,107680.0,107670.0,0.30145299]
[1748498281536,0.00879517,107680.0,107670.0,0.3014485]
[1748498282175,0.00879517,107680.0,107670.0,0.30144853]
[1748498282942,0.00879517,107680.0,107670.0,0.29494049]
[1748498283401,0.00879517,107680.0,107670.0,0.30144853]
[1748498283603,0.00879517,107680.0,107670.0,0.29494049]
[1748498284629,0.00879517,107680.0,107670.0,0.30144852]
[1748498284837,0.00879517,107680.0,107670.0,0.29494049]
[1748498285496,0.00879517,107680.0,107670.0,0.30144852]
[1748498286202,0.00879517,107680.0,107670.0,0.64291991]
[1748498286615,0.00879517,107680.0,107670.0,0.64291718]
[1748498286828,0.00879517,107680.0,107670.0,0.30144525]
[1748498287409,0.00879517,107680.0,107670.0,0.29494049]
[1748498287623,0.00879517,107680.0,107670.0,0.30144524]
[1748498288101,0.00879517,107680.0,107670.0,0.29494049]
[1748498288283,0.00879517,107680.0,107670.0,0.30144524]
[1748498289131,0.00879517,107680.0,107670.0,0.29494049]
[1748498289342,0.00879517,107680.0,107670.0,0.30144403]
[1748498289553,0.00879517,107680.0,107670.0,0.73396937]
[1748498289775,0.00879517,107680.0,107670.0,0.73396915]
[1748498290862,0.00879517,107680.0,107670.0,0.72746583]
[1748498291082,0.00879517,107680.0,107670.0,0.73396723]
[1748498291298,0.00879517,107680.0,107670.0,0.72746583]
[1748498291503,0.00879517,107680.0,107670.0,0.73396723]
[1748498291714,0.00879517,107680.0,107670.0,0.39249537]
[1748498291988,0.00879517,107680.0,107670.0,0.72746583]
[1748498292196,0.00879517,107680.0,107670.0,0.39249524]
[1748498292407,0.00879517,107680.0,107670.0,0.73396655]
[1748498292626,0.00879517,107680.0,107670.0,0.73396654]
[1748498293051,0.00879517,107680.0,107670.0,0.72746583]
[1748498293474,0.00879517,107680.0,107670.0,0.73396652]
[1748498293680,0.28487517,107690.0,107680.0,0.21359479]
[1748498293919,0.28487517,107690.0,107680.0,0.25081683]
[1748498294132,0.28487517,107690.0,107680.0,0.2573175]
[1748498294308,0.28487517,107690.0,107680.0,0.25081683]
[1748498294545,0.28487517,107690.0,107680.0,0.25731749]
[1748498294987,0.28487517,107690.0,107680.0,0.25081683]
[1748498295612,0.28487517,107690.0,107680.0,0.25731759]
[1748498296058,0.28487517,107690.0,107680.0,0.25731747]
[1748498297116,0.28487517,107690.0,107680.0,0.04372268]
[1748498297298,0.31747517,107690.0,107680.0,0.00928677]
[1748498297500,0.76709982,107690.0,107680.0,0.00650121]
[1748498297729,0.76709982,107690.0,107660.0,0.24425822]
[1748498297730,0.0326,107680.0,107660.0,0.24425822]
[1748498297934,0.32812,107680.0,107660.0,0.04650726]
[1748498298143,0.12788,107670.0,107660.0,0.04650726]
[1748498298381,0.22822089,107670.0,107660.0,0.03252122]
[1748498298571,0.23750792,107670.0,107660.0,0.03252364]
[1748498298702,0.32856187,107670.0,107660.0,0.02601707]
[1748498298896,0.31927484,107670.0,107660.0,0.02801707]
[1748498299134,0.32856204,107670.0,107660.0,0.02801707]
[1748498299335,0.12788,107670.0,107660.0,0.02601707]
[1748498299549,0.11168,107670.0,107660.0,0.03530557]
[1748498299786,0.11168,107670.0,107660.0,0.04559398]
[1748498300291,0.11168,107670.0,107660.0,0.03630557]
[1748498300490,0.11168,107670.0,107660.0,0.02701707]
[1748498300697,0.11168,107670.0,107660.0,0.03630557]
[1748498300901,0.09528,107670.0,107660.0,0.03630557]
[1748498301118,0.09528,107670.0,107660.0,0.03530557]
[1748498301595,0.11058,107670.0,107660.0,0.03530557]
[1748498302025,0.11058,107670.0,107660.0,0.02601707]
[1748498302298,0.11058,107670.0,107660.0,0.03530557]
[1748498305101,0.11058,107670.0,107660.0,0.23965196]
[1748498305674,0.11058,107670.0,107660.0,0.23965205]
[1748498305883,0.09528,107670.0,107660.0,0.23965205]
[1748498306916,0.09528,107670.0,107660.0,0.24894011]
[1748498307117,0.09528,107670.0,107660.0,0.23965205]
[1748498307802,0.09528,107670.0,107660.0,0.23965214]
[1748498308509,0.11068,107670.0,107660.0,0.24894029]
[1748498308734,0.09528,107670.0,107660.0,0.24894029]
[1748498309437,0.09528,107670.0,107660.0,0.23965214]
[1748498309923,0.38964,107670.0,107660.0,0.23965214]
[1748498310388,0.38964,107670.0,107660.0,0.2303639]
[1748498310837,0.38964,107670.0,107660.0,0.23965214]
[1748498311077,0.38964,107670.0,107660.0,0.2303639]
[1748498313075,0.38964,107670.0,107660.0,0.23036399]
[1748498313298,0.38964,107670.0,107660.0,0.23965231]
[1748498313508,0.38964,107670.0,107660.0,0.24894055]
[1748498314379,0.38964,107670.0,107660.0,0.03530557]
[1748498316480,0.38964,107670.0,107660.0,0.0692621]
[1748498316701,0.38964,107670.0,107660.0,0.05997369]
[1748498317268,0.38964,107670.0,107660.0,0.03530557]
[1748498317517,0.38964,107670.0,107660.0,0.04459398]
[1748498318639,0.38964,107670.0,107660.0,0.03530557]
[1748498318869,0.38964,107670.0,107660.0,0.04459398]
[1748498319303,0.38964,107670.0,107660.0,0.03530557]
[1748498319950,0.38964,107670.0,107660.0,0.04459398]
[1748498320596,0.38964,107670.0,107660.0,0.2303639]
[1748498320827,0.38836,107670.0,107660.0,0.32045653]
[1748498321034,0.29308,107670.0,107660.0,0.32045653]
[1748498324344,0.29308,107670.0,107660.0,0.29330966]
[1748498324568,0.29308,107670.0,107660.0,0.30259755]
[1748498326604,0.29308,107670.0,107660.0,0.29330966]
[1748498326839,0.30197195,107670.0,107660.0,0.30259772]
[1748498328960,0.30197195,107670.0,107660.0,0.29330974]
[1748498329214,0.30197195,107670.0,107660.0,0.30259772]
[1748498330809,0.30197195,107670.0,107660.0,0.29330974]
[1748498331499,0.30197195,107670.0,107660.0,0.34288446]
[1748498332133,0.00889195,107670.0,107660.0,0.34288446]
[1748498332381,0.30149195,107670.0,107660.0,0.35217244]
[1748498333274,0.30151117,107670.0,107660.0,0.35217244]
[1748498333543,0.30151117,107670.0,107660.0,0.34288446]
[1748498334449,0.30151117,107670.0,107660.0,0.29330974]
[1748498335100,0.30151117,107670.0,107660.0,0.30259711]
[1748498335547,0.30151117,107670.0,107660.0,0.27189711]
[1748498335794,0.30151117,107670.0,107660.0,0.03530557]
[1748498336006,0.30151117,107670.0,107660.0,0.23036399]
[1748498336230,0.30151117,107670.0,107660.0,0.03530557]
[1748498336447,0.30151117,107670.0,107660.0,0.04459398]
[1748498337548,0.30151177,107670.0,107660.0,0.04459398]
[1748498338035,0.30151177,107670.0,107660.0,0.23965231]
[1748498338527,0.30151177,107670.0,107660.0,0.23036399]
[1748498338780,0.30151177,107670.0,107660.0,0.23965231]
[1748498339030,0.30151177,107670.0,107660.0,0.02601707]
[1748498339536,0.30151177,107670.0,107660.0,0.05741707]
[1748498340060,0.27689895,107670.0,107660.0,0.04101707]
[1748498340825,0.27689895,107670.0,107660.0,0.02601707]
[1748498341082,0.26798718,107670.0,107660.0,0.02601707]
[1748498341341,0.2768988,107670.0,107660.0,0.02601707]
[1748498342364,0.2768988,107670.0,107660.0,0.054123]
[1748498342938,0.2768988,107670.0,107660.0,0.02601707]
[1748498343744,0.2768988,107670.0,107660.0,0.03530557]
[1748498344012,0.2768988,107670.0,107660.0,0.02601707]
[1748498344264,0.30151162,107670.0,107660.0,0.03530557]
[1748498344566,0.30151162,107670.0,107660.0,0.02601707]
[1748498345039,0.30151162,107670.0,107660.0,0.04141707]
[1748498345542,0.30151162,107670.0,107660.0,0.02601707]
[1748498347519,0.31079848,107670.0,107660.0,0.02601707]
[1748498347719,0.30151162,107670.0,107660.0,0.02601707]
[1748498348810,0.66092863,107670.0,107660.0,0.02601707]
[1748498349024,1.61206816,107670.0,107660.0,0.02601707]
[1748498349234,1.67168598,107670.0,107660.0,0.02601707]
[1748498349898,1.76273993,107670.0,107660.0,0.02601707]
[1748498351391,1.69836947,107670.0,107660.0,0.02601707]
[1748498353290,1.69834692,107670.0,107660.0,0.02601707]
[1748498356962,0.47896555,107670.0,107660.0,0.02601707]
[1748498357184,0.7613446,107670.0,107660.0,0.05811707]
[1748498357430,0.7613446,107670.0,107660.0,0.06740557]
[1748498357632,0.76134024,107670.0,107660.0,0.05811707]
[1748498359037,0.37678024,107670.0,107660.0,0.05811707]
[1748498359274,0.76130024,107670.0,107660.0,0.05811707]
[1748498359713,0.37678024,107670.0,107660.0,0.08622301]
[1748498359941,0.29256,107670.0,107660.0,0.28128143]
[1748498360161,0.29256,107670.0,107660.0,0.29056975]
[1748498360625,0.29256,107670.0,107660.0,0.30914614]
[1748498361080,0.29256,107670.0,107660.0,0.29985799]
[1748498361505,0.29256,107670.0,107660.0,0.2810402]
[1748498362561,0.29256,107670.0,107660.0,0.27175205]
[1748498362775,0.30145724,107670.0,107660.0,0.27175205]
[1748498363004,0.29256,107670.0,107660.0,0.27175205]
[1748498364523,0.29256,107670.0,107660.0,0.06740557]
[1748498364951,0.91469428,107680.0,107670.0,0.0313]
[1748498365172,1.29830823,107680.0,107670.0,0.0313]
[1748498365386,1.30759474,107680.0,107670.0,0.0313]
[1748498366038,1.2986975,107680.0,107670.0,0.0313]
[1748498366267,1.30759581,107680.0,107670.0,0.0313]
[1748498366607,1.0067493,107680.0,107670.0,0.0313]
[1748498366827,0.9147893,107680.0,107670.0,0.0313]
[1748498367048,0.79587694,107680.0,107670.0,0.0313]
[1748498367269,0.88779694,107680.0,107670.0,0.04058755]
[1748498367450,1.15247694,107680.0,107670.0,0.04058763]
[1748498367702,0.81347694,107680.0,107670.0,0.0313]
[1748498370308,0.80457863,107680.0,107670.0,0.0313]
[1748498370531,0.52091609,107680.0,107670.0,0.0313]
[1748498370757,0.81347609,107680.0,107670.0,0.0313]
[1748498371399,0.41227609,107680.0,107670.0,0.0313]
[1748498378329,0.39537746,107680.0,107670.0,0.0313]
[1748498380748,0.10281746,107680.0,107670.0,0.0581483]
[1748498380969,0.3864,107680.0,107670.0,0.0581483]
[1748498381147,0.3864,107680.0,107670.0,0.06743593]
[1748498381828,0.09392,107680.0,107670.0,0.26247615]
[1748498382034,0.39509299,107680.0,107670.0,0.28105047]
[1748498382438,0.39509291,107680.0,107670.0,0.28105047]
[1748498382660,0.10261291,107680.0,107670.0,0.28105047]
[1748498382874,0.39509291,107680.0,107670.0,0.2903375]
[1748498383562,0.10261291,107680.0,107670.0,0.2903375]
[1748498383769,0.39509075,107680.0,107670.0,0.2903375]
[1748498384012,0.39508934,107680.0,107670.0,0.2903375]
[1748498384217,0.30316934,107680.0,107670.0,0.2903375]
[1748498386129,0.30316776,107680.0,107670.0,0.2903375]
[1748498386344,0.29444,107680.0,107670.0,0.2903375]
[1748498386977,0.3031277,107680.0,107670.0,0.2903375]
[1748498387407,0.29444,107680.0,107670.0,0.2903375]
[1748498388041,0.29344,107680.0,107670.0,0.2903375]
[1748498388555,0.29344,107680.0,107670.0,0.2913375]
[1748498388950,0.29244,107680.0,107670.0,0.2913375]
[1748498393668,0.38436,107690.0,107680.0,0.3799866]
[1748498393879,0.39304943,107690.0,107680.0,0.42081137]
[1748498394719,0.39404943,107690.0,107680.0,0.42081137]
[1748498395144,0.39404959,107690.0,107680.0,0.42081137]
[1748498395574,0.39404959,107690.0,107680.0,0.61583331]
[1748498395797,0.39404959,107690.0,107680.0,0.60654688]
[1748498396027,0.38636,107690.0,107680.0,0.60654688]
[1748498396274,0.39505037,107690.0,107680.0,0.60654688]
[1748498397220,0.1026116,107690.0,107680.0,0.60654688]
[1748498397456,0.002,107690.0,107680.0,0.61583339]
[1748498397681,0.002,107690.0,107680.0,0.63440599]
[1748498398091,0.002,107690.0,107680.0,0.63440607]
[1748498398092,0.002,107690.0,107680.0,0.62511982]
[1748498398256,0.01069133,107690.0,107680.0,0.63440607]
[1748498398458,0.002,107690.0,107680.0,0.28511982]
[1748498398716,0.002,107690.0,107680.0,0.29440607]
[1748498399344,0.002,107690.0,107680.0,0.28511982]
[1748498399549,0.002,107690.0,107680.0,0.29440616]
[1748498399751,0.01069133,107690.0,107680.0,0.25358139]
[1748498400091,0.002,107690.0,107680.0,0.24429505]
[1748498400502,0.01069133,107690.0,107680.0,0.25358139]
[1748498400915,0.01069133,107690.0,107680.0,0.26286764]
[1748498401124,0.01069133,107690.0,107680.0,0.25358104]
[1748498401334,0.01069106,107690.0,107680.0,0.25358104]
[1748498401552,0.002,107690.0,107680.0,0.25358104]
[1748498401726,0.01069106,107690.0,107680.0,0.25358104]
[1748498401969,0.01069106,107690.0,107680.0,0.29751442]
[1748498402179,0.002,107690.0,107680.0,0.29751442]
[1748498402390,0.01069106,107690.0,107680.0,0.28822817]
[1748498402599,0.002,107690.0,107680.0,0.25358104]
[1748498402811,0.01069035,107690.0,107680.0,0.25358104]
[1748498403857,0.002,107690.0,107680.0,0.26286721]
[1748498404070,0.01069071,107690.0,107680.0,0.26286721]
[1748498404277,0.002,107690.0,107680.0,0.25358104]
[1748498404516,0.010692,107690.0,107680.0,0.23500845]
[1748498404735,0.010692,107690.0,107680.0,0.0307]
[1748498405154,0.010692,107690.0,107680.0,0.03998677]
[1748498405369,0.01069164,107690.0,107680.0,0.03998677]
[1748498405616,0.01069145,107690.0,107680.0,0.03998677]
[1748498406056,0.01069151,107690.0,107680.0,0.0307]
[1748498406262,0.01069152,107690.0,107680.0,0.0307]
[1748498406491,0.01069153,107690.0,107680.0,0.0307]
[1748498406916,0.002,107690.0,107680.0,0.0307]
[1748498407094,0.01938338,107690.0,107680.0,0.0307]
[1748498407325,0.01938337,107690.0,107680.0,0.0307]
[1748498407544,0.01938348,107690.0,107680.0,0.0307]
[1748498407754,0.01069169,107690.0,107680.0,0.0307]
[1748498408190,0.02828324,107690.0,107680.0,0.0307]
[1748498409252,0.02828336,107690.0,107680.0,0.0307]
[1748498409717,0.02828336,107690.0,107680.0,0.03998677]
[1748498409922,0.02828336,107690.0,107680.0,0.26036886]
[1748498410123,0.01959146,107690.0,107680.0,0.26965511]
[1748498410342,0.02828326,107690.0,107680.0,0.27894137]
[1748498411015,0.01959146,107690.0,107680.0,0.27894137]
[1748498411215,0.02828509,107690.0,107680.0,0.27894137]
[1748498411890,0.0195956,107690.0,107680.0,0.27894137]
[1748498412099,0.02829044,107690.0,107680.0,0.27894137]
[1748498413198,0.02829081,107690.0,107680.0,0.27894137]
[1748498414310,0.0195956,107690.0,107680.0,0.27894137]
[1748498414786,0.02829113,107690.0,107680.0,0.27894137]
[1748498415001,0.0282917,107690.0,107680.0,0.27894137]
[1748498415661,0.02829171,107690.0,107680.0,0.27894137]
[1748498415924,0.02829251,107690.0,107680.0,0.27894137]
[1748498416173,0.35857406,107670.0,107660.0,9.139e-05]
[1748498416409,0.75164064,107670.0,107660.0,9.139e-05]
[1748498416638,0.88972356,107670.0,107660.0,9.139e-05]
[1748498416865,0.84269459,107670.0,107660.0,9.139e-05]
[1748498417119,0.86126925,107670.0,107660.0,9.139e-05]
[1748498417340,0.90341355,107670.0,107660.0,9.139e-05]
[1748498417571,0.90341355,107670.0,107660.0,0.00209139]
[1748498418029,0.90341407,107670.0,107660.0,0.00209139]
[1748498418247,0.9127017,107670.0,107660.0,0.00309139]
[1748498418492,0.83340739,107670.0,107660.0,0.01849139]
[1748498418714,0.83340747,107670.0,107660.0,0.03489139]
[1748498418933,0.40235344,107670.0,107660.0,0.03489139]
[1748498419159,0.41164047,107670.0,107660.0,0.03489139]
[1748498419379,0.41164047,107670.0,107660.0,0.05974591]
[1748498419380,0.38416,107670.0,107660.0,0.05974591]
[1748498419602,0.39344686,107670.0,107660.0,0.03489139]
[1748498419817,0.39344686,107670.0,107660.0,0.2206614]
[1748498419818,0.09184,107670.0,107660.0,0.2206614]
[1748498420039,0.29232,107670.0,107660.0,0.27431018]
[1748498420255,0.29232,107670.0,107660.0,0.28359842]
[1748498420475,0.29232,107670.0,107660.0,0.2835985]
[1748498423201,0.29232,107670.0,107660.0,0.29288674]
[1748498423753,0.29232,107670.0,107660.0,0.30217489]
[1748498423959,0.39344599,107680.0,107670.0,0.0324]
[1748498425040,0.38416,107680.0,107670.0,0.0324]
[1748498426324,0.38416,107680.0,107670.0,0.0334]
[1748498426798,0.09184,107680.0,107670.0,0.0334]
[1748498427011,0.38416,107680.0,107670.0,0.0334]
[1748498427416,0.38416,107680.0,107670.0,0.04268763]
[1748498427622,0.38416,107680.0,107670.0,0.0334]
[1748498428386,0.39473983,107690.0,107670.0,0.06832893]
[1748498428561,0.29232,107680.0,107670.0,0.05197518]
[1748498428794,0.29232,107680.0,107670.0,0.04268763]
[1748498429181,0.29232,107680.0,107670.0,0.05197518]
[1748498429412,0.29232,107680.0,107670.0,0.0324]
[1748498429634,0.29232,107680.0,107670.0,0.0334]
[1748498430105,0.29232,107680.0,107670.0,0.0324]
[1748498430543,0.29232,107680.0,107670.0,0.0334]
[1748498430750,0.29232,107680.0,107670.0,0.04268763]
[1748498430961,0.29232,107680.0,107670.0,0.0334]
[1748498431601,0.87919918,107690.0,107670.0,0.0334]
[1748498431817,0.888485,107690.0,107670.0,0.0334]
[1748498432043,0.57759362,107690.0,107670.0,0.21915244]
[1748498432263,0.29232,107680.0,107670.0,0.23772745]
[1748498432487,0.29232,107680.0,107670.0,0.27358523]
[1748498432942,0.54042954,107690.0,107670.0,0.25975972]
[1748498433180,0.39281169,107690.0,107680.0,0.0308]
[1748498434701,0.40209682,107690.0,107680.0,0.0308]
[1748498434925,0.10049169,107690.0,107680.0,0.0308]
[1748498435157,0.39281169,107690.0,107680.0,0.0308]
[1748498435816,0.39381169,107690.0,107680.0,0.0308]
[1748498436296,0.39481169,107690.0,107680.0,0.0308]
[1748498439851,0.39477169,107690.0,107680.0,0.05332783]
[1748498441199,0.10249169,107690.0,107680.0,0.0626146]
[1748498441624,0.10249169,107690.0,107680.0,0.07190128]
[1748498442330,0.10249169,107690.0,107680.0,0.04937345]
[1748498442567,0.10249169,107690.0,107680.0,0.0308]
[1748498442754,0.10249169,107690.0,107680.0,0.04008677]
[1748498444373,0.10249169,107690.0,107680.0,0.0308]
[1748498447531,0.11138211,107690.0,107680.0,0.0308]
[1748498449299,0.11138211,107690.0,107680.0,0.05617011]
[1748498449550,0.11138211,107690.0,107680.0,0.0308]
[1748498450837,0.11138211,107690.0,107680.0,0.04008677]
[1748498451051,0.11138211,107690.0,107680.0,0.0308]
[1748498451435,0.11138211,107690.0,107680.0,0.04008677]
[1748498452799,0.11138211,107690.0,107680.0,0.0308]
[1748498453220,0.11138211,107690.0,107680.0,0.04008677]
[1748498453443,0.11138211,107690.0,107680.0,0.06452813]
[1748498454071,0.11139153,107690.0,107680.0,0.06452813]
[1748498455082,0.01959153,107690.0,107680.0,0.06452813]
[1748498455927,0.01959153,107690.0,107680.0,0.04008677]
[1748498456186,0.01959153,107690.0,107680.0,0.0308]
[1748498456426,0.01959153,107690.0,107680.0,0.04008677]
[1748498457279,0.01959153,107690.0,107680.0,0.04937345]
[1748498457978,0.01959153,107690.0,107680.0,0.04008677]
[1748498458426,0.01959398,107690.0,107680.0,0.06545681]
[1748498458879,0.01959398,107690.0,107680.0,0.0308]
[1748498459643,0.01959398,107690.0,107680.0,0.04008677]
[1748498461259,0.01959398,107690.0,107680.0,0.05866005]
[1748498461469,0.01959756,107690.0,107680.0,0.04937345]
[1748498461689,0.01959756,107690.0,107680.0,0.26976553]
[1748498461893,0.01959756,107690.0,107680.0,0.26047893]
[1748498462107,0.01959756,107690.0,107680.0,0.26976553]
[1748498462315,0.01959756,107690.0,107680.0,0.26047893]
[1748498462751,0.01959756,107690.0,107680.0,0.22582228]